bitfinex-derivatives/quotes_ETHF0:USTF0_20250329
["timestamp","ask_amount","ask_price","bid_price","bid_amount"]
[1743217434060,5.1381,1893.5,1893.4,2.427]
[1743217435669,1.3727,1894.0,1893.8,1.05653]
[1743217435870,5.1341,1893.9,1893.6,3.2078]
[1743217436063,5.1341,1893.9,1893.8,1.05658]
[1743217436762,5.1341,1893.9,1893.7,2.42681]
[1743217437875,5.1341,1893.9,1893.8,1.05658]
[1743217438971,1.3571,1893.9,1893.8,1.05658]
[1743217439177,5.1241,1893.9,1893.8,1.05658]
[1743217440867,5.1171,1893.9,1893.8,1.05658]
[1743217441076,1.3571,1893.9,1893.8,1.05658]
[1743217441373,6.9658,1893.9,1893.7,1.3702]
[1743217441573,1.3904,1893.8,1893.7,2.42684]
[1743217442667,0.6661,1894.0,1893.7,4.578]
[1743217442868,3.758,1893.9,1893.8,1.05658]
[1743217443277,2.0127,1894.0,1893.9,1.05652]
[1743217443578,5.7697,1894.0,1893.9,1.05652]
[1743217443770,0.00791431,1894.1,1893.7,5.84939]
[1743217443975,3.76291431,1894.1,1894.0,1.05647]
[1743217444588,0.00791431,1894.1,1894.0,1.73407]
[1743217444888,0.00791431,1894.1,1894.0,8.67721917]
[1743217445388,0.00791431,1894.1,1894.0,11.17721917]
[1743217445690,6.94984841,1894.3,1894.2,1.05636]
[1743217445983,5.86641841,1894.3,1894.2,4.26416]
[1743217446187,2.54863841,1894.3,1894.2,13.54498845]
[1743217446684,1.40663841,1894.3,1894.2,13.54498845]
[1743217446884,10.02123377,1894.4,1894.3,1.0563]
[1743217447482,10.02123377,1894.4,1894.3,8.06919649]
[1743217447988,0.00791431,1894.4,1894.3,8.06919649]
[1743217448581,0.00791431,1894.4,1894.3,10.56919649]
[1743217449091,4.31e-06,1894.4,1894.3,10.56919649]
[1743217449679,3.75000431,1894.4,1894.3,1.0563]
[1743217450490,3.75000431,1894.4,1894.2,1.05633]
[1743217450790,1.3805,1894.3,1894.2,1.05633]
[1743217451691,3.8805,1894.3,1893.6,3.2078]
[1743217451992,3.2078,1893.7,1893.3,0.00791431]
[1743217452181,2.1185,1893.6,1893.4,1.0568]
[1743217452377,3.772,1893.5,1893.4,1.0568]
[1743217452585,5.1842,1893.5,1893.3,1.06474431]
[1743217452788,5.1842,1893.5,1893.4,1.0568]
[1743217453177,5.1842,1893.5,1893.3,1.06474431]
[1743217453388,5.1842,1893.5,1893.4,1.0568]
[1743217453986,3.772,1893.5,1893.4,3.2078]
[1743217454188,3.772,1893.5,1893.4,4.2646]
[1743217455881,1.4122,1893.8,1893.7,1.05664]
[1743217456093,5.1782,1893.8,1893.7,1.05664]
[1743217457284,5.1782,1893.8,1893.6,3.2078]
[1743217457494,5.1782,1893.8,1893.7,1.05664]
[1743217457894,5.1782,1893.8,1893.6,4.26446]
[1743217458093,8.386,1893.8,1893.6,1.05667]
[1743217458398,0.7287,1893.7,1893.6,1.05669]
[1743217458593,2.0993,1893.7,1893.6,1.05669]
[1743217459082,3.763,1893.7,1893.6,1.05669]
[1743217459282,5.1336,1893.7,1893.6,1.05669]
[1743217460190,3.763,1893.7,1893.6,1.05669]
[1743217460896,3.763,1893.7,1893.6,2.45249]
[1743217461888,4.81966,1893.7,1893.3,3.21571431]
[1743217462198,2.1026,1893.6,1893.4,1.0568]
[1743217463301,2.1026,1893.6,1893.5,1.05675]
[1743217463505,5.8736,1893.6,1893.5,4.26455]
[1743217465300,3.769,1893.6,1893.5,3.2078]
[1743217465597,3.768,1893.7,1893.6,1.05669]
[1743217465898,10.74201946,1893.9,1893.8,1.05658]
[1743217465899,10.01331946,1893.9,1893.8,1.05658]
[1743217466105,10.01331946,1893.9,1893.8,4.26438]
[1743217466395,8.94829946,1893.9,1893.8,4.26438]
[1743217466703,8.94829946,1893.9,1893.8,13.70260354]
[1743217467300,6.78011946,1894.1,1893.8,12.64602354]
[1743217467499,3.82733946,1894.1,1894.0,4.26427]
[1743217467899,3.82733946,1894.1,1894.0,15.00508064]
[1743217469099,0.36679946,1894.1,1894.0,15.53308064]
[1743217469605,9.46e-06,1894.1,1894.0,15.53308064]
[1743217469802,4.31e-06,1894.4,1894.3,1.0563]
[1743217469999,4.31e-06,1894.4,1894.3,4.2641]
[1743217475211,4.31e-06,1894.4,1894.3,11.28123861]
[1743217477814,4.31e-06,1894.4,1894.3,13.78123861]
[1743217478813,13.98484623,1895.4,1895.2,1.0558]
[1743217479111,2.13934518,1895.4,1895.3,1.05574]
[1743217479409,30.83464332,1895.5,1895.4,1.05569]
[1743217479599,30.83464332,1895.5,1895.4,6.76349]
[1743217479805,30.83464332,1895.5,1895.4,15.07092279]
[1743217480115,21.68790678,1895.5,1895.4,15.07092279]
[1743217480413,1.72979981,1895.5,1895.4,26.44226007]
[1743217480710,0.31042981,1895.5,1895.4,20.76492193]
[1743217480912,1e-08,1895.5,1895.4,20.76492193]
[1743217481514,1e-08,1895.5,1895.4,18.26492193]
[1743217482210,1.38521431,1895.6,1895.5,1.05563]
[1743217482716,1.38521431,1895.6,1895.5,7.984125]
[1743217484507,1.38521431,1895.6,1895.5,6.928495]
[1743217484708,1.38521431,1895.6,1895.4,3.2078]
[1743217484913,1.38521431,1895.6,1895.3,1.06361431]
[1743217485507,2.44082431,1895.6,1895.3,0.00791431]
[1743217485814,2.44082431,1895.6,1895.1,1.05584]
[1743217485815,3.2078,1895.5,1895.1,1.05584]
[1743217486015,3.2078,1895.5,1895.0,3.2078]
[1743217486016,5.1579,1895.4,1895.3,1.05574]
[1743217486903,5.1579,1895.4,1895.2,1.06367431]
[1743217487721,5.1579,1895.4,1895.2,0.00791431]
[1743217487920,1.05585,1895.1,1894.7,1.05606]
[1743217488215,8.3677,1895.0,1894.4,3.7358]
[1743217488407,3.736,1894.9,1894.7,1.05605]
[1743217488610,1.3535,1894.8,1894.6,1.05613]
[1743217488802,1.3535,1894.8,1894.5,6.97625869]
[1743217489115,1.3535,1894.8,1894.5,1.06408431]
[1743217489411,3.2078,1894.7,1894.5,0.00791431]
[1743217489613,5.0875,1894.6,1894.5,0.00791431]
[1743217490115,5.0875,1894.6,1894.5,1.06410431]
[1743217490414,5.0875,1894.6,1894.5,0.00791431]
[1743217490807,5.0875,1894.6,1894.5,1.06410431]
[1743217491316,5.8016,1894.6,1894.5,1.06410431]
[1743217493012,2.0676,1894.6,1894.5,1.06410431]
[1743217496319,1.3535,1894.6,1894.5,1.06410431]
[1743217496918,1.3535,1894.6,1894.5,10.33419504]
[1743217497116,0.7064,1895.0,1894.9,1.05597]
[1743217497615,0.7064,1895.0,1894.7,1.05605]
[1743217497814,0.7292,1894.9,1894.5,3.21571431]
[1743217498121,0.7292,1894.9,1894.7,1.05608]
[1743217498310,1.3854,1894.8,1894.6,1.0561]
[1743217498621,1.3854,1894.8,1894.7,1.05608]
[1743217498622,5.1014,1894.8,1894.7,1.05608]
[1743217500424,1.3854,1894.8,1894.7,1.05608]
[1743217501829,1.3854,1894.8,1894.6,1.3547]
[1743217502122,1.3854,1894.8,1894.7,1.05608]
[1743217502420,1.3854,1894.8,1894.7,7.9333612]
[1743217502632,1.3854,1894.8,1894.5,3.21571431]
[1743217503021,1.3854,1894.8,1894.7,1.05608]
[1743217505329,1.3854,1894.8,1894.7,11.15491684]
[1743217506726,1.3854,1894.8,1894.7,12.59721684]
[1743217507826,3.2078,1895.2,1895.1,1.05585]
[1743217508023,6.8948,1895.2,1895.1,1.05585]
[1743217509030,8.2715,1895.2,1895.1,1.05585]
[1743217509527,8.2715,1895.2,1895.1,4.26365]
[1743217509528,1.3767,1895.2,1895.1,4.26365]
[1743217509730,1.3767,1895.2,1895.1,1.05585]
[1743217513532,0.00791431,1895.6,1895.1,12.55380072]
[1743217513737,1.4622,1896.0,1895.9,1.05541]
[1743217514032,3.686,1896.1,1895.9,1.05536]
[1743217514221,3.686,1896.1,1895.7,1.4432]
[1743217514428,3.686,1896.1,1896.0,1.05535]
[1743217514724,3.9145,1896.2,1896.1,1.0553]
[1743217514725,0.71461431,1896.2,1896.1,1.0553]
[1743217514925,4.39661431,1896.2,1896.1,1.0553]
[1743217515133,0.00791431,1896.2,1896.1,1.0553]
[1743217516133,0.00791431,1896.2,1896.1,4.2631]
[1743217516933,0.00791431,1896.2,1896.1,13.49002196]
[1743217518135,0.00791431,1896.2,1896.1,13.87583931]
[1743217519133,3.21571431,1896.2,1895.9,0.00791431]
[1743217519333,3.21571431,1896.2,1896.0,1.05535]
[1743217519535,0.7138,1896.1,1896.0,1.05535]
[1743217519937,0.00791431,1896.2,1896.1,1.0553]
[1743217521432,0.00791431,1896.2,1896.1,7.94408632]
[1743217524642,0.00791431,1896.2,1896.1,1.0553]
[1743217526939,4.31e-06,1896.2,1896.1,1.0553]
[1743217527147,4.31e-06,1896.2,1896.1,10.29102311]
[1743217529238,4.6236,1896.8,1896.3,2.63795]
[1743217529540,8.2826,1896.8,1896.7,1.05496]
[1743217529739,8.2816,1896.8,1896.7,1.05496]
[1743217529939,4.6236,1896.8,1896.7,1.05496]
[1743217530943,6.0341,1896.8,1896.7,1.05496]
[1743217531447,1.4105,1896.8,1896.7,7.87124004]
[1743217531839,1.4105,1896.8,1896.7,9.30694004]
[1743217532149,0.00791431,1896.9,1896.8,1.05491]
[1743217532646,0.00791431,1896.9,1896.8,7.91599237]
[1743217536043,0.00791431,1896.9,1896.8,8.44319237]
[1743217536247,0.00791431,1896.9,1896.8,7.91599237]
[1743217537037,0.00791431,1896.9,1896.8,8.44319237]
[1743217537245,0.00791431,1896.9,1896.8,11.65099237]
[1743217538047,1.4105,1897.1,1897.0,1.0548]
[1743217538545,1.4105,1897.1,1897.0,7.86088844]
[1743217539842,1.4105,1897.1,1897.0,11.06868844]
[1743217540445,1.4105,1897.1,1897.0,7.86088844]
[1743217540644,1.4105,1897.1,1897.0,1.0548]
[1743217541655,1.4105,1897.1,1897.0,7.82141689]
[1743217545660,1.4105,1897.1,1897.0,1.0548]
[1743217546044,11.80708,1897.1,1896.9,0.00791431]
[1743217546246,1.05481,1897.0,1896.5,4.26284]
[1743217546553,2.1569,1896.9,1896.3,5.84577]
[1743217546744,3.65,1896.8,1896.7,1.05491]
[1743217546942,5.102,1896.8,1896.7,1.05491]
[1743217547548,1.452,1896.8,1896.7,1.05491]
[1743217548254,1.452,1896.8,1896.7,7.90040611]
[1743217551459,1.452,1896.8,1896.7,9.30420611]
[1743217552951,1.44408569,1896.8,1896.7,9.30420611]
[1743217553252,1.44408569,1896.8,1896.7,7.90040611]
[1743217553653,4.65188569,1896.8,1896.6,1.06289431]
[1743217554751,4.65188569,1896.8,1896.6,1.06291431]
[1743217555559,1.44408569,1896.8,1896.7,1.05496]
[1743217555860,5.07408569,1896.8,1896.6,1.06288431]
[1743217556554,8.28188569,1896.8,1896.6,1.06293431]
[1743217556752,8.28188569,1896.8,1896.6,1.06289431]
[1743217557449,5.07408569,1896.8,1896.7,1.05496]
[1743217557656,5.07408569,1896.8,1896.7,8.02503684]
[1743217558751,5.07408569,1896.8,1896.7,6.97007684]
[1743217558955,5.07408569,1896.8,1896.7,8.02503684]
[1743217559256,5.07408569,1896.8,1896.7,1.05496]
[1743217560163,1.44408569,1896.8,1896.7,1.05496]
[1743217560554,1.44408569,1896.8,1896.7,8.0095251]
[1743217565558,1.44408569,1896.8,1896.7,1.05496]
[1743217565960,1.44408569,1896.8,1896.7,7.79090774]
[1743217567468,1.44408569,1896.8,1896.7,9.17640774]
[1743217568265,1.44408569,1896.8,1896.7,7.79090774]
[1743217569663,1.44408569,1896.8,1896.7,9.17640774]
[1743217570067,1.44408569,1896.8,1896.7,7.79090774]
[1743217572665,1.44408569,1896.8,1896.6,0.00791431]
[1743217572864,1.44408569,1896.8,1896.6,1.06291431]
[1743217573369,1.44408569,1896.8,1896.6,0.00791431]
[1743217573569,1.44408569,1896.8,1896.7,1.05496]
[1743217576062,1.44408569,1896.8,1896.6,1.06291431]
[1743217576264,0.7154,1896.7,1896.6,1.06291431]
[1743217576668,0.7154,1896.7,1896.6,0.00791431]
[1743217576869,4.3134,1896.7,1896.6,0.00791431]
[1743217577271,7.5212,1896.7,1896.6,0.00791431]
[1743217579573,10.0212,1896.7,1896.6,0.00791431]
[1743217579869,11.4679,1896.7,1896.6,0.00791431]
[1743217580476,8.9679,1896.7,1896.6,0.00791431]
[1743217580770,7.5212,1896.7,1896.6,0.00791431]
[1743217581362,7.5212,1896.7,1896.6,1.06293431]
[1743217581568,3.591,1896.8,1896.7,1.05491]
[1743217581767,3.591,1896.8,1896.7,1.05496]
[1743217584672,3.2078,1896.9,1896.8,1.05491]
[1743217584975,3.583,1896.9,1896.8,1.05491]
[1743217585367,3.583,1896.9,1896.7,1.4406]
[1743217585569,3.2078,1896.8,1896.7,1.05494]
[1743217585775,3.2078,1896.8,1896.7,1.05496]
[1743217587274,3.2078,1896.8,1896.6,0.00791431]
[1743217587574,3.2078,1896.8,1896.7,1.05496]
[1743217589177,3.2078,1896.8,1896.6,0.00791431]
[1743217589573,3.2078,1896.8,1896.6,1.06292431]
[1743217590876,1.4105,1896.7,1896.6,1.06292431]
[1743217592077,3.2078,1896.8,1896.7,1.05496]
[1743217592272,3.2078,1896.8,1896.7,3.17806]
[1743217592472,3.2078,1896.8,1896.7,9.95385877]
[1743217592980,0.00791431,1897.2,1897.1,1.05474]
[1743217595376,1.35711431,1897.2,1897.1,1.05474]
[1743217595876,1.35711431,1897.2,1896.9,1.3345]
[1743217596074,4.94111431,1897.2,1896.9,1.3345]
[1743217596380,3.2078,1897.1,1897.0,1.05477]
[1743217596680,4.557,1897.1,1897.0,1.05477]
[1743217597374,1.3492,1897.1,1897.0,1.05477]
[1743217597774,4.557,1897.1,1896.8,0.6817]
[1743217597974,4.557,1897.1,1897.0,1.0548]
[1743217598184,4.557,1897.1,1896.9,1.05483]
[1743217598872,4.557,1897.1,1896.9,2.40553]
[1743217599474,4.557,1897.1,1896.9,1.3507]
[1743217599676,4.557,1897.1,1896.9,2.40555]
[1743217600079,4.557,1897.1,1897.0,1.0548]
[1743217603081,4.557,1897.1,1896.7,4.5412]
[1743217603280,3.2078,1896.9,1896.6,1.06289431]
[1743217603491,3.2078,1896.7,1896.6,1.06289431]
[1743217603687,6.7848,1896.7,1896.6,1.06289431]
[1743217603881,8.1432,1896.7,1896.6,1.06293431]
[1743217604090,1.3584,1896.7,1896.6,1.06293431]
[1743217604385,3.2078,1897.1,1896.9,1.05485]
[1743217604386,3.589,1897.0,1896.9,1.05485]
[1743217604588,4.9474,1897.0,1896.9,1.05485]
[1743217605275,4.9474,1897.0,1896.6,0.00791431]
[1743217605478,3.2078,1896.8,1896.6,0.00791431]
[1743217605691,4.9484,1896.7,1896.6,0.00791431]
[1743217606286,6.00336,1896.7,1896.6,0.00791431]
[1743217606494,4.9484,1896.7,1896.6,0.00791431]
[1743217607491,6.00336,1896.7,1896.6,0.00791431]
[1743217608490,1.05508,1896.5,1896.1,1.05525]
[1743217608696,6.7948,1896.4,1896.1,1.05525]
[1743217608893,3.2078,1896.2,1896.1,1.05525]
[1743217609190,3.587,1896.2,1896.0,2.50832]
[1743217609387,1.4564,1896.1,1896.0,2.50832]
[1743217610286,1.4564,1896.1,1895.9,0.00791431]
[1743217610594,3.9378,1896.0,1895.9,0.00791431]
[1743217611091,5.2899,1896.0,1895.9,0.00791431]
[1743217612589,8.1439,1896.0,1895.9,2.43282431]
[1743217612893,8.1439,1896.0,1895.9,1.37741431]
[1743217615501,8.1439,1896.0,1895.9,0.00791431]
[1743217616790,10.6439,1896.0,1895.4,1.05566]
[1743217616986,3.2078,1895.5,1895.3,2.4124]
[1743217617293,6.7918,1895.5,1895.3,2.4124]
[1743217617492,6.7918,1895.5,1895.4,2.41239]
[1743217617691,3.584,1895.5,1895.4,2.41239]
[1743217618991,3.584,1895.5,1895.4,1.3567]
[1743217619295,3.584,1895.5,1895.4,2.41239]
[1743217619694,3.584,1895.5,1895.4,1.3567]
[1743217620087,3.584,1895.5,1895.4,2.41239]
[1743217624789,3.584,1895.5,1895.3,0.00791431]
[1743217624998,6.7918,1895.5,1895.3,0.00791431]
[1743217625798,0.8579,1895.6,1895.5,1.05563]
[1743217626099,3.571,1895.6,1895.5,1.05563]
[1743217629890,3.571,1895.6,1895.4,1.05564]
[1743217630102,3.571,1895.6,1895.5,2.42943]
[1743217630493,3.571,1895.6,1895.5,1.05563]
[1743217630692,4.4519,1895.6,1895.5,1.05563]
[1743217630893,3.2078,1895.7,1895.6,1.05558]
[1743217631102,4.9787,1896.1,1895.6,3.2078]
[1743217631404,4.9724,1896.0,1895.9,1.05537]
[1743217631606,1.4104,1896.0,1895.9,1.05537]
[1743217631901,4.9724,1896.0,1895.9,1.05537]
[1743217632098,3.562,1896.0,1895.9,1.05537]
[1743217632401,6.7698,1896.1,1896.0,1.05535]
[1743217632589,6.7698,1896.1,1896.0,2.39065]
[1743217632995,3.562,1896.1,1896.0,2.39065]
[1743217633398,51.9248,1896.9,1896.2,2.63811]
[1743217633591,4.9784,1896.8,1896.6,1.05498]
[1743217633799,1.4104,1896.7,1896.6,1.05498]
[1743217633998,4.6182,1896.7,1896.6,1.05498]
[1743217634196,8.1852,1896.7,1896.6,1.05498]
[1743217635005,4.9774,1896.7,1896.6,1.05498]
[1743217635305,1.4104,1896.7,1896.6,2.48258]
[1743217635710,0.00791431,1896.8,1896.7,1.05496]
[1743217636194,0.00791431,1896.8,1896.7,2.48256]
[1743217637006,0.00791431,1896.8,1896.7,1.4276]
[1743217637198,6.78571431,1896.8,1896.5,1.06297431]
[1743217637401,1.3975,1896.7,1896.6,1.05502]
[1743217637707,1.3975,1896.7,1896.6,2.40792]
[1743217638405,3.57791431,1896.8,1896.7,1.05496]
[1743217638609,6.78571431,1896.8,1896.6,1.05499]
[1743217638801,1.3975,1896.7,1896.6,2.40789]
[1743217639008,1.3975,1896.7,1896.5,0.00791431]
[1743217639009,1.3975,1896.7,1896.5,1.06297431]
[1743217639208,2.3076,1896.7,1896.5,1.06298431]
[1743217639706,1.3975,1896.6,1896.5,1.06298431]
[1743217640609,1.3975,1896.6,1896.5,1.06299431]
[1743217641301,1.3975,1896.6,1896.5,0.00791431]
[1743217641708,1.3975,1896.6,1896.5,1.06299431]
[1743217642607,3.57491431,1896.8,1896.5,6.90240974]
[1743217642806,3.57491431,1896.8,1896.7,1.05496]
[1743217644508,3.57491431,1896.8,1896.6,2.44359]
[1743217644709,3.57491431,1896.8,1896.7,1.05496]
[1743217646302,3.57491431,1896.8,1896.6,1.3616]
[1743217646503,3.57491431,1896.8,1896.7,1.05496]
[1743217647209,3.57491431,1896.8,1896.6,2.41658]
[1743217647505,3.57491431,1896.8,1896.7,1.05496]
[1743217648202,0.00791431,1896.8,1896.7,1.05496]
[1743217649608,0.00791431,1896.8,1896.7,7.88990947]
[1743217651109,3.559,1897.1,1896.7,6.83494947]
[1743217651309,3.559,1897.1,1897.0,1.0548]
[1743217652214,3.559,1897.1,1896.9,2.52672]
[1743217652708,3.559,1897.1,1897.0,1.0548]
[1743217654212,3.559,1897.1,1896.7,1.4243]
[1743217654516,0.9031,1897.0,1896.9,1.05481]
[1743217658008,3.55491431,1897.2,1897.1,1.05474]
[1743217658706,3.55391431,1897.2,1897.1,1.05474]
[1743217659212,0.00791431,1897.2,1897.1,1.05474]
[1743217661114,1.48271431,1897.2,1897.1,1.05474]
[1743217662919,1.48271431,1897.2,1897.0,1.4569]
[1743217663114,1.48271431,1897.2,1897.1,1.05474]
[1743217663311,1.48271431,1897.2,1896.9,1.9172]
[1743217663516,1.48271431,1897.2,1896.9,1.0548]
[1743217663717,1.48271431,1897.2,1897.0,1.05479]
[1743217664517,1.48271431,1897.2,1896.8,4.566]
[1743217664816,3.2078,1896.9,1896.5,0.00791431]
[1743217665020,5.7629,1896.8,1896.7,1.05496]
[1743217667218,5.7629,1896.8,1896.5,0.00791431]
[1743217667417,5.4281,1896.7,1896.5,0.00791431]
[1743217667617,1.3455,1896.6,1896.5,0.00791431]
[1743217668016,3.8455,1896.6,1895.8,0.528]
[1743217668224,3.2078,1896.1,1895.9,1.05538]
[1743217668515,4.412,1896.0,1895.9,1.05538]
[1743217668721,5.8603,1896.0,1895.9,1.05538]
[1743217670420,4.9893,1896.0,1895.9,1.05538]
[1743217672712,3.541,1896.0,1895.9,1.05538]
[1743217672914,3.541,1896.0,1895.9,1.95328]
[1743217675317,4.9728,1896.0,1895.9,3.30568]
[1743217675824,4.9728,1896.0,1895.9,3.30571]
[1743217676023,4.9728,1896.0,1895.8,1.06334431]
[1743217676228,4.6396,1895.9,1895.8,0.00791431]
[1743217676823,5.5539,1895.9,1895.8,0.00791431]
[1743217677024,5.5539,1895.9,1895.8,1.06338431]
[1743217677217,5.5539,1895.9,1895.8,0.00791431]
[1743217677524,5.5539,1895.9,1895.8,1.06338431]
[1743217678524,4.6396,1895.9,1895.8,0.00791431]
[1743217678712,4.9618,1895.9,1895.8,1.06338431]
[1743217681621,4.9618,1895.9,1895.8,1.90868431]
[1743217682832,4.9618,1895.9,1895.8,1.06338431]
[1743217683426,4.9618,1895.9,1895.8,0.00791431]
[1743217683625,7.4618,1895.9,1895.1,6.08808409]
[1743217683819,3.2078,1895.5,1895.2,1.3531]
[1743217684026,2.2996,1895.4,1895.0,1.33331314]
[1743217684338,1.3832,1895.3,1895.2,1.0558]
[1743217685531,1.3832,1895.3,1895.1,2.41682431]
[1743217685728,1.3832,1895.3,1895.1,0.00791431]
[1743217686030,3.53,1895.2,1895.1,0.00791431]
[1743217687333,4.8814,1895.2,1895.1,0.00791431]
[1743217687536,10.5892,1895.2,1895.1,0.00791431]
[1743217687730,11.645,1895.2,1895.1,0.00791431]
[1743217688431,1.05586,1895.1,1894.7,1.05605]
[1743217688731,1.05586,1895.1,1884.4,5.26226895]
[1743217688732,3.2078,1894.9,1894.1,3.2078]
[1743217688934,3.2078,1894.5,1894.0,0.8658]
[1743217689121,3.2078,1894.2,1893.9,16.29028562]
[1743217689435,4.9379,1894.1,1894.0,1.05647]
[1743217689638,1.3899,1894.1,1894.0,1.05647]
[1743217689926,4.9369,1894.1,1894.0,1.05647]
[1743217690133,4.9369,1894.1,1893.9,16.29819993]
[1743217690134,7.4369,1894.1,1893.9,16.29819993]
[1743217690332,7.4369,1894.1,1893.5,28.50799985]
[1743217690333,4.26427,1894.0,1893.5,1.05671]
[1743217690533,3.2078,1893.7,1893.2,16.29028562]
[1743217690726,3.2078,1893.5,1893.3,1.05681]
[1743217690921,1.3899,1893.4,1893.3,1.05681]
[1743217691130,3.2078,1893.7,1893.6,1.05669]
[1743217691325,3.2078,1894.0,1893.4,3.2078]
[1743217691531,4.9509,1893.9,1893.8,1.05658]
[1743217692033,4.9509,1893.9,1893.7,1.4733]
[1743217692532,1.3899,1893.9,1893.8,1.05658]
[1743217692737,3.562,1893.9,1893.8,1.05658]
[1743217693236,5.0238,1894.1,1894.0,1.05647]
[1743217693432,5.0238,1894.1,1893.7,1.4733]
[1743217693734,3.2078,1893.9,1893.4,1.97788]
[1743217693934,3.2078,1893.6,1893.5,1.05674]
[1743217694134,4.6686,1893.8,1893.5,6.96963238]
[1743217694331,3.2078,1893.8,1893.7,1.05664]
[1743217694531,3.585,1893.9,1893.8,1.05658]
[1743217694737,3.584,1894.0,1893.9,1.05652]
[1743217695035,5.05371431,1894.2,1894.0,1.05643]
[1743217695236,5.05371431,1894.2,1893.9,6.73476133]
[1743217695435,5.05371431,1894.2,1893.9,2.40359]
[1743217695635,8.26151431,1894.2,1893.9,2.40359]
[1743217696039,8.26151431,1894.2,1893.8,1.05656]
[1743217696437,8.26151431,1894.2,1893.9,1.05649]
[1743217696933,8.26151431,1894.2,1893.5,3.2078]
[1743217697141,3.2078,1893.9,1893.6,1.3471]
[1743217697437,3.592,1893.8,1893.6,2.40378]
[1743217697629,4.9891,1893.8,1893.6,2.40378]
[1743217698734,4.9891,1893.8,1893.6,2.40379]
[1743217699033,4.9891,1893.8,1893.7,1.05664]
[1743217703047,4.9771,1893.8,1893.7,1.05664]
[1743217703252,4.0699,1894.1,1894.0,1.05647]
[1743217703441,8.1398,1894.1,1894.0,1.05647]
[1743217704647,0.00791431,1894.2,1894.1,1.05641]
[1743217704940,3.58791431,1894.2,1894.1,1.05641]
[1743217709851,0.00791431,1894.2,1894.1,1.05641]
[1743217710755,1.48001431,1894.2,1894.1,1.05641]
[1743217714851,0.00791431,1894.2,1894.1,4.26421]
[1743217715555,51.9548,1894.8,1894.6,1.05613]
[1743217715759,4.41115484,1894.7,1894.5,1.05616]
[1743217716250,4.41115484,1894.7,1894.2,3.50563]
[1743217716251,1.05621,1894.5,1894.1,1.0564]
[1743217716446,7.6809,1894.4,1893.9,4.89475484]
[1743217716644,3.56691431,1894.3,1894.2,1.05634]
[1743217716847,4.99001431,1894.3,1894.1,1.05638]
[1743217717047,1.4231,1894.2,1894.1,1.05638]
[1743217717457,1.4231,1894.2,1894.0,1.06434431]
[1743217717647,1.4231,1894.2,1894.1,1.05641]
[1743217718054,1.4231,1894.2,1894.0,2.50774431]
[1743217718556,4.6309,1894.2,1893.7,1.05658]
[1743217718851,3.2078,1893.8,1893.4,2.3133]
[1743217719058,4.476,1893.7,1893.6,1.05665]
[1743217719242,5.8991,1893.7,1893.6,1.05665]
[1743217719443,5.8991,1893.7,1893.5,1.05672]
[1743217719648,4.5792,1893.6,1893.1,4.1146]
[1743217719844,4.5792,1893.6,1892.9,0.8699]
[1743217720057,3.2078,1893.2,1893.1,1.05695]
[1743217720251,6.7728,1893.2,1893.1,1.05695]
[1743217720656,6.7728,1893.2,1893.1,1.05697]
[1743217720961,8.1442,1893.2,1892.9,2.2741]
[1743217721152,8.1442,1893.2,1893.1,1.05697]
[1743217721858,4.9364,1893.2,1893.1,1.05697]
[1743217722453,8.1442,1893.2,1893.1,1.05697]
[1743217722951,8.1442,1893.2,1892.9,2.2741]
[1743217723146,9.032,1893.2,1892.9,1.05703]
[1743217723356,3.2078,1893.0,1892.7,10.70295941]
[1743217723561,4.9598,1892.9,1892.6,1.05722]
[1743217724058,4.9598,1892.9,1892.5,1.05727]
[1743217724258,3.2078,1892.7,1892.5,1.05727]
[1743217724555,4.9588,1892.6,1892.5,1.05727]
[1743217725354,4.9588,1892.6,1892.4,1.3505]
[1743217725546,4.9588,1892.6,1892.4,1.05733]
[1743217725753,5.801,1892.6,1892.5,1.05731]
[1743217727652,5.801,1892.6,1892.4,1.05732]
[1743217727853,5.801,1892.6,1892.4,1.05731]
[1743217728059,5.801,1892.6,1892.5,1.05731]
[1743217728259,5.801,1892.6,1892.4,1.05731]
[1743217729955,5.801,1892.6,1892.3,1.4368]
[1743217730156,3.2078,1892.5,1892.0,4.26536]
[1743217730361,4.5503,1892.4,1892.1,1.0575]
[1743217730559,4.5503,1892.4,1891.9,1.75869152]
[1743217730560,3.566,1892.3,1892.2,1.05747]
[1743217730761,0.00791431,1892.4,1892.1,5.85163]
[1743217731053,0.00791431,1892.4,1892.3,1.05742]
[1743217731454,0.00791431,1892.4,1892.3,1.95072]
[1743217732258,3.2078,1892.6,1892.5,1.05731]
[1743217733558,1.4119,1892.6,1892.5,1.05731]
[1743217737258,1.4119,1892.6,1892.4,1.44611431]
[1743217737458,1.4119,1892.6,1892.4,1.06527431]
[1743217737763,7.1197,1892.6,1891.8,3.64184277]
[1743217737962,7.1197,1892.6,1891.5,0.918]
[1743217737963,3.2078,1892.1,1891.5,0.918]
[1743217738156,4.5036,1892.0,1891.8,1.0577]
[1743217738357,3.2078,1891.9,1891.5,1.05784]
[1743217738565,3.2078,1891.7,1891.4,6.97984738]
[1743217738857,3.2078,1891.5,1891.3,16.29028562]
[1743217739157,4.5076,1891.4,1891.3,14.07498562]
[1743217739357,4.5076,1891.4,1890.9,24.43542844]
[1743217739662,3.2078,1891.0,1890.9,24.43542844]
[1743217739864,52.436,1891.0,1890.9,25.49362844]
[1743217740062,48.826,1891.0,1890.9,26.85632844]
[1743217740259,52.438,1891.0,1890.9,26.85632844]
[1743217740566,58.1458,1891.0,1890.9,24.43542844]
[1743217740755,55.6458,1891.0,1890.9,25.49362844]
[1743217741155,55.6458,1891.0,1890.4,5.8539]
[1743217741363,55.6458,1891.0,1890.8,1.05823]
[1743217741658,48.826,1891.0,1890.6,2.64593]
[1743217741864,48.826,1891.0,1890.9,1.0582]